{"text_format":"1","workbook":"xlsx","n_sheets":4,"sheets":["Feuil1","Feuil1 (2)","Feuil2","Feuil3"],"not_rendered":{"charts":0,"images":1,"macros":1,"external_links":0,"defined_names":0,"comments":0,"pivot_tables":0},"unopened":[],"bounds":{"document_bytes":16777216,"sheet_cells":100000,"rows_first":2000,"rows_last":500,"rows_between":2000,"halvings":0,"cell_chars":16384,"cell_head_chars":4096},"cells_cut":0,"cells_raw":0,"read":"whole","date_system":"1900"}

{"sheet":"Feuil1","index":0,"n_rows":200,"n_cols":6,"rows_kept":200,"cut":false,"hidden":false,"merged":[]}
["Nom Projet","Pertinence","Qualité","Durabilité","Coût"]
["AAA",35,42,18,25000,{"$f":"AVERAGE(B2:D2)","v":31.666666666666668}]
["ABC",25,33,45,17000,34.333333333333336]
["DVD",32,40,15,30000,29]
["FAQ",46,19,31,8000,32]
[null,null,null,null,null,{"$error":"#DIV/0!"}]
[null,null,null,null,null,{"$error":"#DIV/0!"}]
[null,null,null,null,null,{"$error":"#DIV/0!"}]
[null,null,null,null,null,{"$error":"#DIV/0!"}]
[null,null,null,null,null,{"$error":"#DIV/0!"}]
[null,null,null,null,null,{"$error":"#DIV/0!"}]
[null,null,null,null,null,{"$error":"#DIV/0!"}]
[null,null,null,null,null,{"$error":"#DIV/0!"}]
[null,null,null,null,null,{"$error":"#DIV/0!"}]
[null,null,null,null,null,{"$error":"#DIV/0!"}]
[null,null,null,null,null,{"$error":"#DIV/0!"}]
[null,null,null,null,null,{"$error":"#DIV/0!"}]
[null,null,null,null,null,{"$error":"#DIV/0!"}]
[null,null,null,null,null,{"$error":"#DIV/0!"}]
[null,null,null,null,null,{"$error":"#DIV/0!"}]
[null,null,null,null,null,{"$error":"#DIV/0!"}]
[null,null,null,null,null,{"$error":"#DIV/0!"}]
[null,null,null,null,null,{"$error":"#DIV/0!"}]
[null,null,null,null,null,{"$error":"#DIV/0!"}]
[null,null,null,null,null,{"$error":"#DIV/0!"}]
[null,null,null,null,null,{"$error":"#DIV/0!"}]
[null,null,null,null,null,{"$error":"#DIV/0!"}]
[null,null,null,null,null,{"$error":"#DIV/0!"}]
[null,null,null,null,null,{"$error":"#DIV/0!"}]
[null,null,null,null,null,{"$error":"#DIV/0!"}]
[null,null,null,null,null,{"$error":"#DIV/0!"}]
[null,null,null,null,null,{"$error":"#DIV/0!"}]
[null,null,null,null,null,{"$error":"#DIV/0!"}]
[null,null,null,null,null,{"$f":"AVERAGE(B34:D34)","v":{"$error":"#DIV/0!"}}]
[null,null,null,null,null,{"$error":"#DIV/0!"}]
[null,null,null,null,null,{"$error":"#DIV/0!"}]
[null,null,null,null,null,{"$error":"#DIV/0!"}]
[null,null,null,null,null,{"$error":"#DIV/0!"}]
[null,null,null,null,null,{"$error":"#DIV/0!"}]
[null,null,null,null,null,{"$error":"#DIV/0!"}]
[null,null,null,null,null,{"$error":"#DIV/0!"}]
[null,null,null,null,null,{"$error":"#DIV/0!"}]
[null,null,null,null,null,{"$error":"#DIV/0!"}]
[null,null,null,null,null,{"$error":"#DIV/0!"}]
[null,null,null,null,null,{"$error":"#DIV/0!"}]
[null,null,null,null,null,{"$error":"#DIV/0!"}]
[null,null,null,null,null,{"$error":"#DIV/0!"}]
[null,null,null,null,null,{"$error":"#DIV/0!"}]
[null,null,null,null,null,{"$error":"#DIV/0!"}]
[null,null,null,null,null,{"$error":"#DIV/0!"}]
[null,null,null,null,null,{"$error":"#DIV/0!"}]
[null,null,null,null,null,{"$error":"#DIV/0!"}]
[null,null,null,null,null,{"$error":"#DIV/0!"}]
[null,null,null,null,null,{"$error":"#DIV/0!"}]
[null,null,null,null,null,{"$error":"#DIV/0!"}]
[null,null,null,null,null,{"$error":"#DIV/0!"}]
[null,null,null,null,null,{"$error":"#DIV/0!"}]
[null,null,null,null,null,{"$error":"#DIV/0!"}]
[null,null,null,null,null,{"$error":"#DIV/0!"}]
[null,null,null,null,null,{"$error":"#DIV/0!"}]
[null,null,null,null,null,{"$error":"#DIV/0!"}]
[null,null,null,null,null,{"$error":"#DIV/0!"}]
[null,null,null,null,null,{"$error":"#DIV/0!"}]
[null,null,null,null,null,{"$error":"#DIV/0!"}]
[null,null,null,null,null,{"$error":"#DIV/0!"}]
[null,null,null,null,null,{"$f":"AVERAGE(B66:D66)","v":{"$error":"#DIV/0!"}}]
[null,null,null,null,null,{"$error":"#DIV/0!"}]
[null,null,null,null,null,{"$error":"#DIV/0!"}]
[null,null,null,null,null,{"$error":"#DIV/0!"}]
[null,null,null,null,null,{"$error":"#DIV/0!"}]
[null,null,null,null,null,{"$error":"#DIV/0!"}]
[null,null,null,null,null,{"$error":"#DIV/0!"}]
[null,null,null,null,null,{"$error":"#DIV/0!"}]
[null,null,null,null,null,{"$error":"#DIV/0!"}]
[null,null,null,null,null,{"$error":"#DIV/0!"}]
[null,null,null,null,null,{"$error":"#DIV/0!"}]
[null,null,null,null,null,{"$error":"#DIV/0!"}]
[null,null,null,null,null,{"$error":"#DIV/0!"}]
[null,null,null,null,null,{"$error":"#DIV/0!"}]
[null,null,null,null,null,{"$error":"#DIV/0!"}]
[null,null,null,null,null,{"$error":"#DIV/0!"}]
[null,null,null,null,null,{"$error":"#DIV/0!"}]
[null,null,null,null,null,{"$error":"#DIV/0!"}]
[null,null,null,null,null,{"$error":"#DIV/0!"}]
[null,null,null,null,null,{"$error":"#DIV/0!"}]
[null,null,null,null,null,{"$error":"#DIV/0!"}]
[null,null,null,null,null,{"$error":"#DIV/0!"}]
[null,null,null,null,null,{"$error":"#DIV/0!"}]
[null,null,null,null,null,{"$error":"#DIV/0!"}]
[null,null,null,null,null,{"$error":"#DIV/0!"}]
[null,null,null,null,null,{"$error":"#DIV/0!"}]
[null,null,null,null,null,{"$error":"#DIV/0!"}]
[null,null,null,null,null,{"$error":"#DIV/0!"}]
[null,null,null,null,null,{"$error":"#DIV/0!"}]
[null,null,null,null,null,{"$error":"#DIV/0!"}]
[null,null,null,null,null,{"$error":"#DIV/0!"}]
[null,null,null,null,null,{"$error":"#DIV/0!"}]
[null,null,null,null,null,{"$f":"AVERAGE(B98:D98)","v":{"$error":"#DIV/0!"}}]
[null,null,null,null,null,{"$error":"#DIV/0!"}]
[null,null,null,null,null,{"$error":"#DIV/0!"}]
[null,null,null,null,null,{"$error":"#DIV/0!"}]
[null,null,null,null,null,{"$error":"#DIV/0!"}]
[null,null,null,null,null,{"$error":"#DIV/0!"}]
[null,null,null,null,null,{"$error":"#DIV/0!"}]
[null,null,null,null,null,{"$error":"#DIV/0!"}]
[null,null,null,null,null,{"$error":"#DIV/0!"}]
[null,null,null,null,null,{"$error":"#DIV/0!"}]
[null,null,null,null,null,{"$error":"#DIV/0!"}]
[null,null,null,null,null,{"$error":"#DIV/0!"}]
[null,null,null,null,null,{"$error":"#DIV/0!"}]
[null,null,null,null,null,{"$error":"#DIV/0!"}]
[null,null,null,null,null,{"$error":"#DIV/0!"}]
[null,null,null,null,null,{"$error":"#DIV/0!"}]
[null,null,null,null,null,{"$error":"#DIV/0!"}]
[null,null,null,null,null,{"$error":"#DIV/0!"}]
[null,null,null,null,null,{"$error":"#DIV/0!"}]
[null,null,null,null,null,{"$error":"#DIV/0!"}]
[null,null,null,null,null,{"$error":"#DIV/0!"}]
[null,null,null,null,null,{"$error":"#DIV/0!"}]
[null,null,null,null,null,{"$error":"#DIV/0!"}]
[null,null,null,null,null,{"$error":"#DIV/0!"}]
[null,null,null,null,null,{"$error":"#DIV/0!"}]
[null,null,null,null,null,{"$error":"#DIV/0!"}]
[null,null,null,null,null,{"$error":"#DIV/0!"}]
[null,null,null,null,null,{"$error":"#DIV/0!"}]
[null,null,null,null,null,{"$error":"#DIV/0!"}]
[null,null,null,null,null,{"$error":"#DIV/0!"}]
[null,null,null,null,null,{"$error":"#DIV/0!"}]
[null,null,null,null,null,{"$error":"#DIV/0!"}]
[null,null,null,null,null,{"$f":"AVERAGE(B130:D130)","v":{"$error":"#DIV/0!"}}]
[null,null,null,null,null,{"$error":"#DIV/0!"}]
[null,null,null,null,null,{"$error":"#DIV/0!"}]
[null,null,null,null,null,{"$error":"#DIV/0!"}]
[null,null,null,null,null,{"$error":"#DIV/0!"}]
[null,null,null,null,null,{"$error":"#DIV/0!"}]
[null,null,null,null,null,{"$error":"#DIV/0!"}]
[null,null,null,null,null,{"$error":"#DIV/0!"}]
[null,null,null,null,null,{"$error":"#DIV/0!"}]
[null,null,null,null,null,{"$error":"#DIV/0!"}]
[null,null,null,null,null,{"$error":"#DIV/0!"}]
[null,null,null,null,null,{"$error":"#DIV/0!"}]
[null,null,null,null,null,{"$error":"#DIV/0!"}]
[null,null,null,null,null,{"$error":"#DIV/0!"}]
[null,null,null,null,null,{"$error":"#DIV/0!"}]
[null,null,null,null,null,{"$error":"#DIV/0!"}]
[null,null,null,null,null,{"$error":"#DIV/0!"}]
[null,null,null,null,null,{"$error":"#DIV/0!"}]
[null,null,null,null,null,{"$error":"#DIV/0!"}]
[null,null,null,null,null,{"$error":"#DIV/0!"}]
[null,null,null,null,null,{"$error":"#DIV/0!"}]
[null,null,null,null,null,{"$error":"#DIV/0!"}]
[null,null,null,null,null,{"$error":"#DIV/0!"}]
[null,null,null,null,null,{"$error":"#DIV/0!"}]
[null,null,null,null,null,{"$error":"#DIV/0!"}]
[null,null,null,null,null,{"$error":"#DIV/0!"}]
[null,null,null,null,null,{"$error":"#DIV/0!"}]
[null,null,null,null,null,{"$error":"#DIV/0!"}]
[null,null,null,null,null,{"$error":"#DIV/0!"}]
[null,null,null,null,null,{"$error":"#DIV/0!"}]
[null,null,null,null,null,{"$error":"#DIV/0!"}]
[null,null,null,null,null,{"$error":"#DIV/0!"}]
[null,null,null,null,null,{"$f":"AVERAGE(B162:D162)","v":{"$error":"#DIV/0!"}}]
[null,null,null,null,null,{"$error":"#DIV/0!"}]
[null,null,null,null,null,{"$error":"#DIV/0!"}]
[null,null,null,null,null,{"$error":"#DIV/0!"}]
[null,null,null,null,null,{"$error":"#DIV/0!"}]
[null,null,null,null,null,{"$error":"#DIV/0!"}]
[null,null,null,null,null,{"$error":"#DIV/0!"}]
[null,null,null,null,null,{"$error":"#DIV/0!"}]
[null,null,null,null,null,{"$error":"#DIV/0!"}]
[null,null,null,null,null,{"$error":"#DIV/0!"}]
[null,null,null,null,null,{"$error":"#DIV/0!"}]
[null,null,null,null,null,{"$error":"#DIV/0!"}]
[null,null,null,null,null,{"$error":"#DIV/0!"}]
[null,null,null,null,null,{"$error":"#DIV/0!"}]
[null,null,null,null,null,{"$error":"#DIV/0!"}]
[null,null,null,null,null,{"$error":"#DIV/0!"}]
[null,null,null,null,null,{"$error":"#DIV/0!"}]
[null,null,null,null,null,{"$error":"#DIV/0!"}]
[null,null,null,null,null,{"$error":"#DIV/0!"}]
[null,null,null,null,null,{"$error":"#DIV/0!"}]
[null,null,null,null,null,{"$error":"#DIV/0!"}]
[null,null,null,null,null,{"$error":"#DIV/0!"}]
[null,null,null,null,null,{"$error":"#DIV/0!"}]
[null,null,null,null,null,{"$error":"#DIV/0!"}]
[null,null,null,null,null,{"$error":"#DIV/0!"}]
[null,null,null,null,null,{"$error":"#DIV/0!"}]
[null,null,null,null,null,{"$error":"#DIV/0!"}]
[null,null,null,null,null,{"$error":"#DIV/0!"}]
[null,null,null,null,null,{"$error":"#DIV/0!"}]
[null,null,null,null,null,{"$error":"#DIV/0!"}]
[null,null,null,null,null,{"$error":"#DIV/0!"}]
[null,null,null,null,null,{"$error":"#DIV/0!"}]
[null,null,null,null,null,{"$f":"AVERAGE(B194:D194)","v":{"$error":"#DIV/0!"}}]
[null,null,null,null,null,{"$error":"#DIV/0!"}]
[null,null,null,null,null,{"$error":"#DIV/0!"}]
[null,null,null,null,null,{"$error":"#DIV/0!"}]
[null,null,null,null,null,{"$error":"#DIV/0!"}]
[null,null,null,null,null,{"$error":"#DIV/0!"}]
[null,null,null,null,null,{"$error":"#DIV/0!"}]

{"sheet":"Feuil1 (2)","index":1,"n_rows":4,"n_cols":3,"rows_kept":4,"cut":false,"hidden":false,"merged":[]}
["Nom Projet","Coût"]
["ABC",17000,34.333333333333336]
["FAQ",8000,32]
["AAA",25000,31.666666666666668]

{"sheet":"Feuil2","index":2,"n_rows":7,"n_cols":40,"rows_kept":7,"cut":false,"hidden":false,"merged":[]}
[1,3,4,0,0,0,0,0,1,0,3,0,8,8,6,4,0,0,0,0,0,0,0,0,0,0,0,0,0,0,0,0,0,4,2,0,8,6,4,0]
[0,0,0,0,0,0,0,0,0,1,7,1,8,1,4,4,0,0,0,0,0,0,0,0,0,0,0,0,0,0,0,0,0,0,7,0,1,4,4,0]
[5,6,7,0,0,0,0,0,0,5,1,5,4,4,3,2,0,0,0,0,0,0,0,0,0,0,0,0,0,0,0,0,0,2,1,0,4,3,2,0]
[0,0,0,0,0,0,0,0,0,0,0,0,6,7,0,0,0,0,0,0,0,0,0,0,0,0,0,0,0,0,0,0,0,0,0,0,2,1,9,2]
[7,0,1,0,0,0,0,0,1,5,4,6,3,2,9,6,0,0,0,0,0,0,0,0,0,0,0,0,0,0,0,0,0,6,3,1,2,9,6,0]
[]
[null,null,null,null,null,null,null,null,null,null,null,null,null,null,null,null,null,null,null,null,null,null,null,null,null,null,null,null,null,null,null,null,null,null,1,0,0,1,1,0]

{"sheet":"Feuil3","index":3,"n_rows":0,"n_cols":0,"rows_kept":0,"cut":false,"hidden":false,"merged":[]}